fUST/lending_fUST_20251023
["ID","MTS","AMOUNT","RATE_DAILY","PERIOD"]
[392118796,1761171491286,150.0,0.00021289,2]
[392118815,1761171958814,507.0,0.00035493,30]
[392118821,1761172042041,455.074689,0.00013699,2]
[392118822,1761172042157,455.074689,0.00020187,2]
[392118832,1761172129939,150.0,0.00021686,2]
[392118833,1761172130335,150.0,0.00023658,2]
[392118927,1761172196190,150.0,0.00021679,2]
[392118928,1761172196582,150.0,0.0002365,2]
[392118977,1761172232839,-345.8984577,0.00024263,2]
[392118979,1761172232848,-1185.0354301,0.00024272,2]
[392118982,1761172232860,-14.9645699,0.00024272,2]
[392118983,1761172232869,-587.46250728,0.00024273,2]
[392119220,1761172238418,-375.75,0.00024273,2]
[392119230,1761172238514,-1501.55255396,0.00024273,2]
[392119232,1761172238524,-188.0,0.0002432,2]
[392119234,1761172238534,-300.0,0.0002432,2]
[392119236,1761172238544,-300.0,0.0002432,2]
[392119237,1761172238554,-16353.85165087,0.00024322,2]
[392119238,1761172238564,-731.22,0.00024322,2]
[392119239,1761172238574,-500.0,0.00024322,2]
[392119240,1761172238583,-2273.63,0.00024323,3]
[392119241,1761172238592,-1136.81,0.00024323,3]
[392119242,1761172238601,-568.41,0.00024323,3]
[392119243,1761172238610,-284.2,0.00024323,3]
[392119244,1761172238620,-852.65,0.00024323,3]
[392119245,1761172238629,-500.0,0.00024329,2]
[392119246,1761172238639,-500.0,0.00024329,2]
[392119247,1761172238648,-500.0,0.00024329,2]
[392119248,1761172238658,-1535.76526717,0.00024329,2]
[392119249,1761172238667,-500.0,0.00024329,2]
[392119250,1761172238676,-600.0,0.00024329,2]
[392119251,1761172238686,-1535.76526717,0.00024329,2]
[392119252,1761172238695,-500.0,0.00024329,2]
[392119254,1761172238707,-1535.76526717,0.00024329,2]
[392119256,1761172238717,-500.0,0.00024329,2]
[392119258,1761172238726,-1535.76526717,0.00024329,2]
[392119260,1761172238736,-500.0,0.00024329,2]
[392119262,1761172238746,-500.0,0.00024329,2]
[392119264,1761172238755,-500.0,0.00024329,2]
[392119266,1761172238764,-1535.76526717,0.00024329,2]
[392119268,1761172238773,-500.0,0.00024329,2]
[392119270,1761172238783,-1535.76526717,0.00024329,2]
[392119272,1761172238792,-173.29016351,0.00024329,2]
[392119274,1761172238801,-500.0,0.00024329,2]
[392119276,1761172238811,-1535.76526717,0.00024329,2]
[392119278,1761172238821,-500.0,0.00024329,2]
[392119280,1761172238830,-1535.76526717,0.00024329,2]
[392119282,1761172238840,-500.0,0.00024329,2]
[392119284,1761172238849,-1535.76526717,0.00024329,2]
[392119286,1761172238859,-500.0,0.00024329,2]
[392119288,1761172238868,-1535.76526717,0.00024329,2]
[392119290,1761172238877,-500.0,0.00024329,2]
[392119292,1761172238887,-1535.76526717,0.00024329,2]
[392119294,1761172238896,-1535.76526717,0.00024329,2]
[392119296,1761172238905,-500.0,0.00024329,2]
[392119297,1761172238915,-1535.76526717,0.00024329,2]
[392119299,1761172238924,-500.0,0.00024329,2]
[392119302,1761172238934,-1535.76526717,0.00024329,2]
[392119304,1761172238944,-500.0,0.00024329,2]
[392119305,1761172238954,-1535.76526717,0.00024329,2]
[392119307,1761172238963,-1535.76526717,0.00024329,2]
[392119309,1761172238973,-500.0,0.00024329,2]
[392119312,1761172238983,-1535.76526717,0.00024329,2]
[392119325,1761172239090,-1535.76526717,0.00024329,2]
[392119327,1761172239103,-1535.76526717,0.00024329,2]
[392119329,1761172239111,-500.0,0.00024329,2]
[392119331,1761172239122,-1535.76526717,0.00024329,2]
[392119333,1761172239132,-500.0,0.00024329,2]
[392119335,1761172239142,-1535.76526717,0.00024329,2]
[392119337,1761172239152,-500.0,0.00024329,2]
[392119339,1761172239161,-1535.76526717,0.00024329,2]
[392119341,1761172239171,-1535.76526717,0.00024329,2]
[392119343,1761172239180,-1535.76526717,0.00024329,2]
[392119346,1761172239190,-1535.76526717,0.00024329,2]
[392119348,1761172239199,-1535.76526717,0.00024329,2]
[392119350,1761172239209,-1535.76526717,0.00024329,2]
[392119352,1761172239218,-1535.76526717,0.00024329,2]
[392119354,1761172239228,-1535.76526717,0.00024329,2]
[392119356,1761172239239,-1535.76526717,0.00024329,2]
[392119358,1761172239248,-1535.76526717,0.00024329,2]
[392119360,1761172239258,-1535.76526717,0.00024329,2]
[392119362,1761172239267,-1535.76526717,0.00024329,2]
[392119364,1761172239277,-1535.76526717,0.00024329,2]
[392119366,1761172239287,-1535.76526717,0.00024329,2]
[392119367,1761172239296,-1535.76526717,0.00024329,2]
[392119369,1761172239305,-1535.76526717,0.00024329,2]
[392119371,1761172239315,-1535.76526717,0.00024329,2]
[392119373,1761172239325,-1535.76526717,0.00024329,2]
[392119375,1761172239335,-1535.76526717,0.00024329,2]
[392119376,1761172239345,-1535.76526717,0.00024329,2]
[392119378,1761172239354,-1535.76526717,0.00024329,2]
[392119380,1761172239364,-1535.76526717,0.00024329,2]
[392119381,1761172239373,-1535.76526717,0.00024329,2]
[392119382,1761172239383,-1535.76526717,0.00024329,2]
[392119383,1761172239392,-1535.76526717,0.00024329,2]
[392119384,1761172239401,-1535.76526717,0.00024329,2]
[392119385,1761172239411,-1535.76526717,0.00024329,2]
[392119386,1761172239421,-1535.76526717,0.00024329,2]
[392119387,1761172239430,-1535.76526717,0.00024329,2]
[392119388,1761172239440,-1535.76526717,0.00024329,2]
[392119389,1761172239450,-1535.76526717,0.00024329,2]
[392119390,1761172239459,-1535.76526717,0.00024329,2]
[392119391,1761172239469,-1535.76526717,0.00024329,2]
[392119392,1761172239478,-1535.76526717,0.00024329,2]
[392119393,1761172239488,-1535.76526717,0.00024329,2]
[392119394,1761172239498,-1535.76526717,0.00024329,2]
[392119395,1761172239508,-1535.76526717,0.00024329,2]
[392119396,1761172239517,-1535.76526717,0.00024329,2]
[392119397,1761172239527,-1338.79,0.0002433,2]
[392119398,1761172239536,-1338.79,0.0002433,2]
[392119399,1761172239546,-1338.79,0.0002433,2]
[392119400,1761172239556,-731.22,0.00024331,2]
[392119401,1761172239565,-500.0,0.00024331,2]
[392119402,1761172239574,-1338.79,0.00024331,2]
[392119403,1761172239584,-510.1697177,0.00024332,2]
[392119404,1761172239593,-500.0,0.00024332,2]
[392119405,1761172239602,-500.0,0.00024332,2]
[392119406,1761172239611,-500.0,0.00024332,2]
[392119407,1761172239620,-500.0,0.00024332,2]
[392119408,1761172239630,-500.0,0.00024332,2]
[392119409,1761172239640,-500.0,0.00024332,2]
[392119410,1761172239650,-500.0,0.00024332,2]
[392119411,1761172239659,-500.0,0.00024332,2]
[392119412,1761172239669,-500.0,0.00024332,2]
[392119413,1761172239679,-500.0,0.00024332,2]
[392119414,1761172239689,-500.0,0.00024332,2]
[392119415,1761172239699,-500.0,0.00024332,2]
[392119416,1761172239708,-500.0,0.00024332,2]
[392119417,1761172239718,-500.0,0.00024332,2]
[392119418,1761172239727,-500.0,0.00024332,2]
[392119419,1761172239737,-500.0,0.00024332,2]
[392119420,1761172239747,-500.0,0.00024332,2]
[392119421,1761172239756,-500.0,0.00024332,2]
[392119422,1761172239766,-731.22,0.00024332,2]
[392119423,1761172239776,-731.22,0.00024332,2]
[392119424,1761172239785,-731.22,0.00024332,2]
[392119425,1761172239794,-731.22,0.00024332,2]
[392119426,1761172239804,-731.22,0.00024332,2]
[392119427,1761172239814,-731.22,0.00024332,2]
[392119428,1761172239823,-731.22,0.00024332,2]
[392119429,1761172239832,-731.22,0.00024332,2]
[392119430,1761172239841,-731.22,0.00024332,2]
[392119431,1761172239852,-731.22,0.00024332,2]
[392119432,1761172239861,-731.22,0.00024332,2]
[392119433,1761172239870,-731.22,0.00024332,2]
[392119434,1761172239879,-731.22,0.00024332,2]
[392119435,1761172239889,-731.22,0.00024332,2]
[392119436,1761172239898,-731.22,0.00024332,2]
[392119437,1761172239907,-731.22,0.00024332,2]
[392119438,1761172239916,-731.22,0.00024332,2]
[392119439,1761172239925,-731.22,0.00024332,2]
[392119440,1761172239935,-731.22,0.00024332,2]
[392119441,1761172239944,-731.22,0.00024332,2]
[392119442,1761172239954,-731.22,0.00024332,2]
[392119443,1761172239963,-731.23963968,0.00024332,2]
[392119445,1761172239972,-531.15446138,0.00024332,2]
[392119446,1761172239981,-500.0,0.00024332,2]
[392119447,1761172239991,-613.71855809,0.00024332,2]
[392119448,1761172240001,-1338.79,0.00024332,2]
[392119449,1761172240010,-1338.79,0.00024332,2]
[392119450,1761172240019,-1338.79,0.00024332,2]
[392119451,1761172240029,-1338.79,0.00024332,2]
[392119452,1761172240038,-1338.79,0.00024332,2]
[392119453,1761172240047,-1338.79,0.00024332,2]
[392119455,1761172240056,-1338.79,0.00024332,2]
[392119457,1761172240066,-1338.79,0.00024332,2]
[392119458,1761172240075,-1338.79,0.00024332,2]
[392119460,1761172240084,-1338.79,0.00024332,2]
[392119462,1761172240093,-1338.79,0.00024332,2]
[392119464,1761172240103,-1338.79,0.00024332,2]
[392119466,1761172240112,-1338.79,0.00024332,2]
[392119468,1761172240121,-1338.79,0.00024332,2]
[392119470,1761172240130,-1338.79,0.00024332,2]
[392119472,1761172240140,-1338.79,0.00024332,2]
[392119474,1761172240149,-1338.79,0.00024332,2]
[392119476,1761172240158,-1338.79,0.00024332,2]
[392119478,1761172240167,-1338.79,0.00024332,2]
[392119480,1761172240178,-1338.9009579,0.00024332,2]
[392119482,1761172240187,-187.11195623,0.00024332,2]
[392119484,1761172240197,-370000.0,0.00024333,2]
[392119485,1761172240206,-500.0,0.00024373,2]
[392119486,1761172240217,-500.0,0.00024373,2]
[392119487,1761172240226,-500.0,0.00024373,2]
[392119488,1761172240237,-500.0,0.00024373,2]
[392119489,1761172240246,-500.0,0.00024373,2]
[392119490,1761172240256,-500.0,0.00024373,2]
[392119491,1761172240265,-500.0,0.00024373,2]
[392119492,1761172240276,-500.0,0.00024373,2]
[392119493,1761172240286,-8085.59,0.000244,7]
[392119494,1761172240295,-600.0,0.00024818,20]
[392119495,1761172240305,-500.0,0.00024873,2]
[392119496,1761172240314,-500.0,0.00024873,2]
[392119497,1761172240324,-500.0,0.00024873,2]
[392119498,1761172240333,-500.0,0.00024873,2]
[392119499,1761172240343,-500.0,0.00024873,2]
[392119501,1761172240352,-500.0,0.00024873,2]
[392119503,1761172240362,-500.0,0.00024873,2]
[392119505,1761172240371,-500.0,0.00024873,2]
[392119507,1761172240381,-500.0,0.00024873,2]
[392119509,1761172240391,-500.0,0.00024873,2]
[392119511,1761172240400,-500.0,0.00024873,2]
[392119513,1761172240410,-500.0,0.00024873,2]
[392119515,1761172240419,-500.0,0.00024873,2]
[392119517,1761172240429,-405.24828615,0.00024873,2]
[392119519,1761172240438,-343.43017407,0.00024873,2]
[392119521,1761172240447,-441.75209543,0.00024873,2]
[392119523,1761172240456,-500.0,0.00024873,2]
[392119525,1761172240466,-500.0,0.00024873,2]
[392119527,1761172240475,-500.0,0.00024873,2]
[392119529,1761172240485,-208.41205003,0.00024873,2]
[392119531,1761172240498,-502.20391075,0.00024873,2]
[392119533,1761172240507,-500.0,0.00024873,2]
[392119535,1761172240517,-500.0,0.00024873,2]
[392119537,1761172240526,-500.0,0.00024873,2]
[392119539,1761172240535,-500.0,0.00024873,2]
[392119541,1761172240544,-500.0,0.00024873,2]
[392119543,1761172240554,-500.0,0.00024873,2]
[392119545,1761172240564,-645.390391,0.000249,2]
[392119547,1761172240573,-280.263696,0.000249,2]
[392119549,1761172240583,-361394.069774,0.000249,2]
[392119551,1761172240592,-1000.0,0.00024921,2]
[392119553,1761172240601,-1001.9168495,0.00024921,2]
[392119555,1761172240610,-1000.0,0.00024921,2]
[392119557,1761172240619,-1000.0,0.00024921,2]
[392119559,1761172240629,-1000.0,0.00024921,2]
[392119561,1761172240638,-1001.10601427,0.00024921,2]
[392119563,1761172240648,-1001.80797894,0.00024921,2]
[392119566,1761172240658,-1130.81369819,0.00024921,2]
[392119568,1761172240667,-645.390391,0.00025287,2]
[392119570,1761172240676,-280.263696,0.00025287,2]
[392119571,1761172240685,-624.78465503,0.00025377,2]
[392119574,1761172240695,-500.82699209,0.00025377,2]
[392119575,1761172240704,-500.0,0.00025377,2]
[392119577,1761172240714,-500.0,0.00025377,2]
[392119579,1761172240723,-160.12134622,0.00025377,2]
[392119582,1761172240732,-500.0,0.00025377,2]
[392119584,1761172240746,-500.0,0.00025377,2]
[392119585,1761172240755,-500.0,0.00025421,2]
[392119588,1761172240765,-500.0,0.00025421,2]
[392119590,1761172240775,-348.92582538,0.00025421,2]
[392119591,1761172240784,-500.0,0.00025421,2]
[392119594,1761172240798,-159.17157894,0.00025421,2]
[392119596,1761172240807,-500.0,0.00025421,2]
[392119598,1761172240816,-1000.0,0.00025421,2]
[392119601,1761172240825,-1000.0,0.00025421,2]
[392119604,1761172240834,-1000.0,0.00025421,2]
[392119607,1761172240843,-287.47044568,0.00025421,2]
[392119610,1761172240852,-500.0,0.00025421,2]
[392119612,1761172240861,-500.0,0.00025421,2]
[392119614,1761172240870,-1000.0,0.00025421,2]
[392119616,1761172240880,-501.64796023,0.00025421,2]
[392119618,1761172240889,-1000.0,0.00025421,2]
[392119620,1761172240899,-500.0,0.00025421,2]
[392119622,1761172240908,-1000.0,0.00025421,2]
[392119624,1761172240917,-500.0,0.00025421,2]
[392119626,1761172240926,-1000.0,0.00025421,2]
[392119628,1761172240936,-1000.0,0.00025421,2]
[392119630,1761172240944,-972.74885932,0.00025421,2]
[392119632,1761172240954,-404.46227763,0.00025468,2]
[392119634,1761172240963,-517.8156044,0.00025468,2]
[392119636,1761172240972,-1627.3819389,0.00025468,2]
[392119638,1761172240981,-160.0,0.000255,2]
[392119640,1761172240993,-150.0,0.00025629,2]
[392119642,1761172241002,-645.390391,0.00025675,2]
[392119644,1761172241011,-280.263696,0.00025675,2]
[392119654,1761172241097,-403.14601822,0.00025693,3]
[392119656,1761172241107,-4547.26,0.00025693,3]
[392119658,1761172241116,-2273.62,0.00025693,3]
[392119660,1761172241125,-1136.82,0.00025693,3]
[392119662,1761172241134,-568.4,0.00025693,3]
[392119664,1761172241143,-500.00281273,0.00025925,2]
[392119666,1761172241154,-1004.35604818,0.00025925,2]
[392119668,1761172241163,-1000.0,0.00025925,2]
[392119670,1761172241172,-1000.0,0.00025925,2]
[392119672,1761172241181,-1500.0,0.00025968,2]
[392119674,1761172241190,-1500.0,0.00025968,2]
[392119676,1761172241199,-1500.0,0.00025968,2]
[392119678,1761172241208,-1500.0,0.00025968,2]
[392119680,1761172241217,-1500.0,0.00025968,2]
[392119682,1761172241226,-260.0,0.00026048,2]
[392119684,1761172241235,-645.390391,0.00026062,2]
[392119686,1761172241246,-280.263696,0.00026062,2]
[392119688,1761172241256,-151.0,0.00026078,2]
[392119690,1761172241265,-152.3612631,0.00026078,2]
[392119692,1761172241274,-151.0,0.00026078,2]
[392119694,1761172241283,-151.0,0.00026078,2]
[392119696,1761172241292,-200.15840008,0.00026078,2]
[392119698,1761172241301,-278.97632628,0.00026078,2]
[392119700,1761172241311,-151.0,0.00026133,2]
[392119702,1761172241321,-151.0,0.00026133,2]
[392119704,1761172241330,-151.0,0.00026188,2]
[392119706,1761172241340,-198.0,0.00026188,2]
[392119709,1761172241351,-151.0,0.00026242,2]
[392119711,1761172241360,-408.16018009,0.00026263,2]
[392119713,1761172241370,-191.0,0.00026297,2]
[392119715,1761172241379,-420.0,0.00026365,2]
[392119717,1761172241388,-159.0,0.00026384,20]
[392119719,1761172241397,-1680.0,0.00026434,2]
[392119721,1761172241406,-645.390391,0.0002645,2]
[392119723,1761172241415,-280.263696,0.0002645,2]
[392119724,1761172241424,-1500.0,0.00026472,2]
[392119726,1761172241434,-1500.0,0.00026472,2]
[392119729,1761172241444,-2000.0,0.00026516,2]
[392119731,1761172241453,-1000.0,0.00026516,2]
[392119732,1761172241462,-2000.0,0.00026516,2]
[392119734,1761172241472,-2000.0,0.00026516,2]
[392119736,1761172241481,-2000.0,0.00026516,2]
[392119739,1761172241492,-360.0,0.00026596,2]
[392119740,1761172241501,-455.074689,0.00026676,2]
[392119742,1761172241511,-2000.0,0.0002702,2]
[392119744,1761172241520,-1009.58762937,0.0002702,2]
[392119747,1761172241529,-2500.0,0.00027064,2]
[392119748,1761172241539,-2500.0,0.00027064,2]
[392119751,1761172241548,-2500.0,0.00027064,2]
[392119753,1761172241557,-2500.0,0.00027064,2]
[392119755,1761172241566,-1877.30255395,0.00027087,2]
[392119757,1761172241575,-460.0,0.00027144,2]
[392119759,1761172241584,-720.0,0.000273,30]
[392119761,1761172241594,-2422.13,0.000275,2]
[392119763,1761172241603,-198.67647978,0.00027568,5]
[392119765,1761172241612,-3000.0,0.00027612,5]
[392119767,1761172241621,-3000.0,0.00027612,5]
[392119769,1761172241630,-3000.0,0.00027612,5]
[392119771,1761172241645,-3000.0,0.00027612,5]
[392119773,1761172241654,-199.0,0.00027671,7]
[392119775,1761172241663,-560.0,0.00027692,2]
[392119777,1761172241674,-199.0,0.00027945,8]
[392119780,1761172241683,-15194.17797009,0.00028,2]
[392119782,1761172241692,-787.72292643,0.00028,2]
[392119783,1761172241701,-2095.87745763,0.0002816,5]
[392119785,1761172241710,-887.71567513,0.0002816,5]
[392119787,1761172241719,-3500.0,0.0002816,5]
[392119789,1761172241729,-1500.0,0.0002816,5]
[392119791,1761172241739,-199.0,0.00028219,9]
[392119793,1761172241748,-660.0,0.0002824,2]
[392119795,1761172241757,-470.42190248,0.00028263,2]
[392119798,1761172241770,-199.0,0.00028493,10]
[392119800,1761172241779,-32491.25403941,0.000285,7]
[392119802,1761172241789,-587.0,0.00028582,2]
[392119804,1761172241798,-1222.49,0.000286,7]
[392119806,1761172241807,-170.86201625,0.00028653,5]
[392119808,1761172241817,-157.34573935,0.00028653,5]
[392119810,1761172241827,-500.0,0.00028708,5]
[392119812,1761172241836,-26626.65971563,0.0002876,2]
[392119814,1761172241845,-990.68799871,0.0002876,2]
[392119816,1761172241854,-4000.0,0.0002876,5]
[392119818,1761172241863,-250.40585376,0.0002876,2]
[392119820,1761172241873,-2319.21272566,0.0002876,2]
[392119822,1761172241882,-438.22,0.00028767,2]
[392119824,1761172241892,-438.22,0.00028767,2]
[392119826,1761172241901,-438.22,0.00028767,2]
[392119828,1761172241910,-438.22,0.00028767,2]
[392119830,1761172241919,-438.22,0.00028767,2]
[392119832,1761172241928,-438.22,0.00028767,2]
[392119834,1761172241937,-438.22,0.00028767,2]
[392119836,1761172241947,-438.22,0.00028767,2]
[392119838,1761172241956,-438.22,0.00028767,2]
[392119840,1761172241965,-438.22,0.00028767,2]
[392119842,1761172241974,-438.22,0.00028767,2]
[392119844,1761172241983,-438.22,0.00028767,2]
[392119846,1761172241995,-438.22,0.00028767,2]
[392119848,1761172242004,-438.22,0.00028767,2]
[392119850,1761172242014,-438.22,0.00028767,2]
[392119852,1761172242024,-438.22,0.00028767,2]
[392119854,1761172242033,-438.22,0.00028767,2]
[392119856,1761172242043,-438.22,0.00028767,2]
[392119858,1761172242052,-199.0,0.00028767,11]
[392119860,1761172242061,-760.0,0.00028788,2]
[392119862,1761172242071,-2351.0,0.0002879,2]
[392119864,1761172242079,-169.89105494,0.000288,7]
[392119866,1761172242088,-882.29458223,0.00029,2]
[392119867,1761172242098,-1169.40395253,0.00029,2]
[392119868,1761172242107,-502.61799314,0.00029,7]
[392119869,1761172242116,-60061.74073658,0.0002904,2]
[392119870,1761172242124,-199.0,0.00029041,12]
[392119871,1761172242133,-285.42,0.00029103,21]
[392119872,1761172242142,-177.87051647,0.00029103,21]
[392119873,1761172242151,-500.81454387,0.00029267,5]
[392119874,1761172242159,-500.0,0.00029267,5]
[392119875,1761172242168,-500.0,0.00029267,2]
[392119876,1761172242178,-500.0,0.00029267,5]
[392119877,1761172242187,-500.0,0.00029267,5]
[392119878,1761172242196,-500.265209,0.00029267,5]
[392119879,1761172242205,-500.0,0.00029267,5]
[392119880,1761172242214,-500.0,0.00029267,5]
[392119881,1761172242224,-500.0,0.00029267,5]
[392119882,1761172242233,-235.51278415,0.00029267,5]
[392119883,1761172242243,-609.34623017,0.00029267,5]
[392119884,1761172242252,-500.0,0.00029267,5]
[392119885,1761172242261,-500.0,0.00029267,5]
[392119886,1761172242271,-500.0,0.00029267,5]
[392119887,1761172242280,-500.0,0.00029267,5]
[392119889,1761172242288,-500.0,0.00029267,5]
[392119891,1761172242298,-502.43854319,0.00029267,5]
[392119893,1761172242307,-500.0,0.00029267,5]
[392119894,1761172242317,-500.0,0.00029267,5]
[392119895,1761172242327,-502.53122103,0.00029267,5]
[392119897,1761172242336,-500.0,0.00029267,5]
[392119898,1761172242345,-500.0,0.00029267,5]
[392119899,1761172242354,-500.0,0.00029267,5]
[392119900,1761172242363,-500.0,0.00029267,5]
[392119901,1761172242373,-199.0,0.00029315,13]
[392119902,1761172242382,-860.0,0.00029336,2]
[392119903,1761172242391,-2021.11721159,0.0002939,5]
[392119904,1761172242400,-160.0,0.0002952,2]
[392119905,1761172242410,-403.14601822,0.00029521,2]
[392119906,1761172242419,-157.34573934,0.00029539,5]
[392119907,1761172242428,-95000.0,0.0002956,2]
[392119908,1761172242437,-199.0,0.00029589,14]
[392119909,1761172242446,-448.0,0.000297,5]
[392119910,1761172242455,-1000.0,0.00029815,2]
[392119911,1761172242464,-1000.6854998,0.00029815,5]
[392119912,1761172242473,-1000.0,0.00029815,5]
[392119913,1761172242482,-1003.09329574,0.00029815,5]
[392119914,1761172242492,-1000.0,0.00029815,5]
[392119915,1761172242502,-1000.0,0.00029815,5]
[392119916,1761172242511,-1000.0,0.00029815,5]
[392119917,1761172242520,-221.77021502,0.00029815,5]
[392119918,1761172242528,-1031.97294589,0.00029815,5]
[392119919,1761172242537,-1001.56552918,0.00029815,5]
[392119920,1761172242547,-1000.0,0.00029815,5]
[392119921,1761172242556,-774.46887039,0.00029815,5]
[392119922,1761172242566,-1000.0,0.00029815,5]
[392119923,1761172242576,-1000.0,0.00029815,5]
[392119924,1761172242586,-614.53254891,0.00029815,5]
[392119925,1761172242595,-1000.0,0.00029815,5]
[392119926,1761172242604,-15826.95654765,0.00029845,2]
[392119927,1761172242614,-199.0,0.00029863,15]
[392119928,1761172242623,-960.0,0.00029884,2]
[392119929,1761172242633,-2000.0,0.00029888,7]
[392119930,1761172242642,-500.0,0.000299,5]
[392119931,1761172242651,-500.0,0.000299,5]
[392119932,1761172242660,-500.0,0.000299,5]
[392119933,1761172242671,-500.0,0.000299,5]
[392119934,1761172242683,-500.0,0.000299,5]
[392119935,1761172242694,-500.0,0.000299,5]
[392119936,1761172242704,-403.49163538,0.000299,5]
[392119937,1761172242714,-500.0,0.000299,5]
[392119938,1761172242723,-2422.13,0.000299,2]
[392119939,1761172242735,-1877.30255395,0.000299,2]
[392119940,1761172242744,-236.823,0.0003,2]
[392119941,1761172242754,-645.390391,0.0003,15]
[392119942,1761172242763,-280.263696,0.0003,15]
[392119943,1761172242774,-772130.37286292,0.0003,15]
[392119944,1761172242785,-151.0,0.0003,30]
[392119945,1761172242795,-151.0,0.0003,30]
[392119946,1761172242807,-319.544133,0.0003,30]
[392119947,1761172242819,-319.544133,0.0003,30]
[392119948,1761172242829,-319.544133,0.0003,30]
[392119949,1761172242948,-319.544133,0.0003,30]
[392119950,1761172242959,-151.0,0.0003,30]
[392119951,1761172242969,-151.0,0.0003,30]
[392119952,1761172242979,-151.0,0.0003,30]
[392119953,1761172242989,-151.0,0.0003,30]
[392119955,1761172242998,-864.0,0.0003003,30]
[392119956,1761172243008,-199.0,0.00030136,16]
[392119957,1761172243019,-532.68362487,0.00030263,2]
[392119958,1761172243029,-501.21083915,0.00030363,2]
[392119959,1761172243039,-1005.57870524,0.00030363,5]
[392119960,1761172243052,-1500.0,0.00030363,5]
[392119961,1761172243062,-511.33957118,0.00030363,5]
[392119962,1761172243072,-1500.0,0.00030363,5]
[392119963,1761172243082,-1500.0,0.00030363,5]
[392119964,1761172243094,-199.0,0.0003041,17]
[392119966,1761172243104,-1060.0,0.00030432,2]
[392119967,1761172243114,-1000.0,0.00030448,5]
[392119969,1761172243124,-1000.0,0.00030448,5]
[392119970,1761172243135,-508.33463292,0.00030448,5]
[392119971,1761172243143,-1000.0,0.00030448,5]
[392119972,1761172243152,-1000.0,0.00030448,5]
[392119973,1761172243161,-505.59155942,0.00030448,5]
[392119974,1761172243170,-199.0,0.00030684,18]
[392119975,1761172243180,-161.0,0.00030767,42]
[392119976,1761172243190,-438.22,0.00030817,2]
[392119977,1761172243200,-500.0,0.00030817,7]
[392119978,1761172243216,-2000.0,0.00030911,5]
[392119979,1761172243228,-957.30267343,0.00030911,5]
[392119980,1761172243239,-1000.0,0.00030911,5]
[392119981,1761172243249,-199.0,0.00030958,19]
[392119982,1761172243258,-5000.0,0.00030962,2]
[392119983,1761172243269,-1160.0,0.00030979,2]
[392119984,1761172243280,-823.0,0.00030985,2]
[392119986,1761172243289,-4000.0,0.00030987,10]
[392119987,1761172243300,-428.12470712,0.00030996,5]
[392119988,1761172243310,-380.0430271,0.00030996,5]
[392119989,1761172243321,-1500.0,0.00030996,5]
[392119990,1761172243331,-1003.10569259,0.00030996,5]
[392119991,1761172243340,-1001.92,0.00031,2]
[392119992,1761172243350,-1001.92,0.00031174,2]
[392119993,1761172243359,-199.0,0.00031232,20]
[392119994,1761172243369,-3292.0,0.00031354,3]
[392119995,1761172243380,-2500.0,0.00031458,5]
[392119996,1761172243389,-199.0,0.00031506,21]
[392119997,1761172243399,-637.97539759,0.00031527,2]
[392119998,1761172243408,-512.4240118,0.00031544,5]
[392119999,1761172243418,-252.56,0.0003178,22]
[392120000,1761172243427,-2422.13,0.000318,2]
[392120001,1761172243436,-6000.0,0.00031886,10]
[392120002,1761172243446,-1000.59911718,0.00032,5]
[392120003,1761172243456,-9999.999999,0.00032,2]